Cogmind - Beta 10.2 @@@ ROGUE MODE // 2021.05.30 @ 18:01:01 Player: kasaphescent Result: Destroyed by G-73 Enforcer with Heavy Laser Performance ------------- Evolutions (9) 4500 Regions Visited (27) 5400 Robots Destroyed (280) 1400 Value Destroyed (15712) 15712 Prototype IDs (35) 700 Alien Tech Used (3) 600 Bonus (8519) 8519 TOTAL SCORE: 36831 Bonus ------- Triggered High Security 500 High Alert Combat Kills 3931 Follower Combat Kills 441 Aligned with FarCom 300 Met Data Miner 300 Met Zhirov 300 Met Warlord at Base 500 MAIN.C Attacked Warlord 500 Met Warlord at Research 2000 Scanned by Researcher 500 Friendly Fire -753 Cogmind --------- Core Integrity 0/1600 Matter 300/300 Energy 100/100 System Corruption 49% Temperature Cool (61) Movement Core (50) Location -1/Access Parts ------- > --- POWER (2) -------- (None) > --- PROPULSION (10) -- (None) > --- UTILITY (10) ----- (None) > --- WEAPON (3) ------- (None) > --- INVENTORY (4) ---- Light Quantum Reactor Antigrav System Antigrav System Antigrav System Peak State ------------ > --- POWER ------------ Quantum Reactor Light Quantum Reactor > --- PROPULSION ------- Improved Heavy Treads Improved Heavy Treads Improved Heavy Treads Biometal Heavy Treads Advanced Heavy Siege Treads > --- UTILITY ---------- Advanced Heat Sink Advanced Heat Sink Advanced Heat Sink Advanced Heat Sink High-capacity Storage Unit Advanced Visual Processing Unit Recoil Nullifier Improved Phase Shifter Layered Heavy Armor Plating > --- WEAPON ----------- Enhanced Nova Cannon Enhanced Nova Cannon Helical Railgun > --- INVENTORY -------- Quantum Reactor Light Quantum Reactor Biometal Heavy Treads Advanced Heavy Siege Treads Transdimensional Reconstructor Enhanced Nova Cannon Enhanced Nova Cannon Helical Railgun Micro-nuke Launcher Force Lance [Rating: 182] Favorites ----------- Power Micro Fission Core Engine Improved Deuterium Engine Power Core Micro Fission Core Reactor Light Antimatter Reactor Propulsion Aluminum Leg Treads Improved Heavy Treads Leg Aluminum Leg Wheel Centrium Wheel Hover Unit Antigrav System Utility Advanced Heat Sink Device Advanced Heat Sink Storage High-capacity Storage Unit Processor Advanced Visual Processing Unit Protection Makeshift Armor Plating Weapon Enhanced Nova Cannon Energy Gun Heavy Laser Energy Cannon Enhanced Nova Cannon Ballistic Gun Helical Railgun Ballistic Cannon Hardcell Cannon Launcher Micro-nuke Launcher Special Weapon Stasis Projector Impact Weapon Power Maul Piercing Weapon Force Lance Build | -11 -10 -10 -10 -9 -8 -7 -6 -6 -6 -6 -5 -5 -5 -5 -5 -4 -4 -4 -4 -4 -4 -4 -3 -3 -3 -2 -1 ------- Run | Scr Mat Min Exi Min Mat Fac Fac Low Low Dat Pro Fac Upp Upp War Pro Fac Was Fac Upp Upp Zhi Pro Res Arm Res Acc Slots Evolved 18 | . . . . . 4 2 2 . . . . 2 . . . . 2 . . . . . . 2 . 2 2 Power 1 | . . . . . . . . . . . . 1 . . . . . . . . . . . . . . . Propulsion 8 | . . . . . 2 . 1 . . . . 1 . . . . . . . . . . . 2 . . 2 Utility 8 | . . . . . 1 2 1 . . . . . . . . . 2 . . . . . . . . 2 . Weapon 1 | . . . . . 1 . . . . . . . . . . . . . . . . . . . . . . Parts Attached 350 | 7 . 8 7 2 9 14 18 10 12 . 18 5 3 7 16 9 40 5 11 1 6 2 5 35 56 6 38 Power 41 | 1 . 2 . . 2 1 2 2 1 . 1 1 . 1 1 2 4 . 3 . . . . 1 9 2 5 Engine 9 | 1 . 2 . . 2 1 1 1 1 . . . . . . . . . . . . . . . . . . Core 13 | . . . . . . . 1 1 . . 1 1 . 1 1 1 2 . 3 . . . . . 1 . . Reactor 19 | . . . . . . . . . . . . . . . . 1 2 . . . . . . 1 8 2 5 Propulsion 93 | 2 . 3 . . 2 3 4 1 . . 4 2 1 2 8 4 10 4 . . 3 . 2 15 11 1 11 Treads 29 | . . . . . . . . . . . . . 1 1 2 1 . 2 . . 3 . . 6 9 1 3 Leg 31 | 2 . 3 . . 2 3 3 . . . 3 . . . 5 . 4 2 . . . . . . . . 4 Wheel 19 | . . . . . . . 1 1 . . 1 . . 1 1 3 4 . . . . . 2 3 2 . . Hover 14 | . . . . . . . . . . . . 2 . . . . 2 . . . . . . 6 . . 4 Flight . | . . . . . . . . . . . . . . . . . . . . . . . . . . . . Utility 91 | 2 . 1 2 2 1 5 5 2 6 . 4 . 1 1 4 . 13 1 5 1 1 2 1 12 11 2 6 Device 50 | . . 1 1 2 . 5 2 1 3 . 2 . 1 . 1 . 5 1 3 . 1 1 . 6 7 1 6 Storage 6 | 2 . . 1 . 1 . . . . . . . . . 1 . . . . . . . . 1 . . . Processor 6 | . . . . . . . 2 . . . . . . . . . 3 . . . . . . . 1 . . Hackware . | . . . . . . . . . . . . . . . . . . . . . . . . . . . . Protection 29 | . . . . . . . 1 1 3 . 2 . . 1 2 . 5 . 2 1 . 1 1 5 3 1 . Artifact . | . . . . . . . . . . . . . . . . . . . . . . . . . . . . Weapon 125 | 2 . 2 5 . 4 5 7 5 5 . 9 2 1 3 3 3 13 . 3 . 2 . 2 7 25 1 16 Energy Gun 27 | . . 1 1 . 3 3 1 . . . . . . 2 2 2 3 . 2 . . . . 3 3 . 1 Energy Cannon 29 | . . . 3 . 1 1 . 3 1 . . . . . . 1 6 . . . . . . 2 5 . 6 Ballistic Gun 20 | 2 . 1 1 . . . 3 . 3 . . . . . . . . . 1 . . . . 1 3 1 4 Ballistic Cannon 18 | . . . . . . . 2 . . . 9 2 1 1 1 . 2 . . . . . . . . . . Launcher 18 | . . . . . . 1 1 2 1 . . . . . . . . . . . 1 . 1 . 7 . 4 Special Weapon 1 | . . . . . . . . . . . . . . . . . . . . . . . . . 1 . . Impact Weapon 1 | . . . . . . . . . . . . . . . . . 1 . . . . . . . . . . Slashing Weapon . | . . . . . . . . . . . . . . . . . . . . . . . . . . . . Piercing Weapon 11 | . . . . . . . . . . . . . . . . . 1 . . . 1 . 1 1 6 . 1 Special Melee Weapon . | . . . . . . . . . . . . . . . . . . . . . . . . . . . . Unidentified Prototypes 16 | . . 1 3 1 . . . . . . 1 . . . . 2 . . 1 . 1 3 . 1 1 . 1 Parts Lost 147 | . . 1 . . 3 2 4 . 13 . 10 1 4 . 4 10 23 . 7 . 2 . . 13 17 . 33 Power 22 | . . 1 . . 1 . 2 . 1 . 1 . 1 . . 3 3 . 1 . . . . . 4 . 4 Propulsion 50 | . . . . . . 1 1 . 3 . 4 1 1 . 3 6 7 . . . 2 . . 7 4 . 10 Utility 43 | . . . . . . . 1 . 5 . 4 . 1 . . . 8 . 4 . . . . 3 6 . 11 Weapon 32 | . . . . . 2 1 . . 4 . 1 . 1 . 1 1 5 . 2 . . . . 3 3 . 8 Highest Loss Streak 19 | . . 1 . . 3 2 2 . 5 . 9 1 3 . 4 7 9 . 4 . 2 . . 4 3 . 19 Average Slot Usage (%) 82 | . 100 100 98 100 95 99 97 86 79 20 52 11 13 39 59 89 90 94 85 89 90 93 93 94 78 77 71 Engine 2 | . 14 14 14 14 8 7 5 6 5 . . . . . . . . . . . . . . . . . . Core 2 | . . . . . . . . . . . 3 . . 4 7 7 5 5 5 10 10 10 10 6 1 . . Reactor 2 | . . . . . . . . . . . . . . . . 1 4 5 4 . . . . 2 7 8 7 Treads 8 | . . . . . . . . . . . . . . 6 12 4 . 2 10 10 13 21 16 17 18 20 18 Leg 9 | . 28 28 28 28 36 30 28 13 5 . 11 . . . 3 26 4 8 . . . . . . . . . Wheel 4 | . . . . . . . 1 9 11 . . . . 2 5 . 17 10 10 10 8 5 8 12 2 . . Device 13 | . . 12 5 4 9 22 13 6 7 6 12 . . . . 5 13 15 15 15 14 17 21 19 16 16 20 Storage 7 | . 28 15 22 23 18 15 10 6 5 . . . . . 3 5 5 5 5 5 5 5 5 4 4 4 3 Processor 6 | . . . . . . . 12 13 13 13 13 11 11 11 11 11 8 10 10 10 10 7 5 4 6 4 3 Protection 5 | . . . . . . . 2 9 9 . 3 . . . 7 11 11 10 6 10 10 9 10 7 4 8 3 Energy Gun 4 | . . 6 13 14 19 20 4 . . . . . . 6 1 4 1 5 4 5 5 5 5 2 4 . . Energy Cannon 2 | . . . . . . 2 5 5 4 . . . . . . . 4 . . . . . . 2 3 8 7 Ballistic Gun 4 | . 28 21 13 14 3 . 2 13 13 . . . . . . . . . 1 5 5 5 5 5 1 4 3 Ballistic Cannon 1 | . . . . . . . 5 . . . 6 . . 3 1 5 3 5 3 . . . . . . . . Piercing Weapon 1 | . . . . . . . . . . . . . . . . . . 5 5 5 5 5 4 1 2 . . Naked Turns 36 | . . . . . . . . . . . . . . . . . . . . . . . . . . . 36 Heaviest Build 137 | 14 14 24 42 42 56 65 72 71 65 1 40 8 15 41 86 87 121 84 92 78 78 80 88 99 121 136 137 Greatest Support 380 | 20 20 20 20 20 40 40 60 56 56 3 71 32 16 28 105 105 96 140 140 32 116 16 32 112 300 305 380 Greatest Overweight (x) 6 | 3 . 1 2 2 1 1 2 2 2 . 3 2 2 4 5 2 5 2 2 2 4 4 5 5 6 . 1 Average Overweight (x) 1 | . . . 1 1 1 1 1 1 . . . . . 1 2 . 1 1 1 2 2 4 2 1 . . . Largest Inventory Capacity 14 | 6 6 6 14 14 12 12 12 12 12 4 4 4 4 4 12 12 12 12 12 12 12 12 12 12 12 12 12 Average Capacity 10 | 5 6 6 10 13 12 12 12 12 11 4 4 4 4 4 10 12 12 12 12 12 12 12 12 12 12 12 11 Most Carried 14 | 6 6 6 9 14 12 12 12 12 11 4 4 3 4 4 11 11 12 12 12 12 12 12 12 12 12 12 12 Average Carried 9 | 5 5 5 6 12 10 11 10 11 8 4 2 2 1 1 6 9 9 12 11 11 11 10 11 11 10 11 10 Final Capacity 14 | 6 6 6 14 12 12 12 12 12 4 4 4 4 4 4 12 12 12 12 12 12 12 12 12 12 12 12 4 Final Carried 12 | 6 6 6 9 10 12 12 12 10 4 4 2 2 4 1 11 4 12 12 12 12 9 12 12 12 12 12 4 Class Distribution -------------------- 53% | Scavenger-Mutant 23% | Mutant 17% | Scavenger-Skirmisher 5% | Scavenger-Tank Dominant Class ---------------- Mutant | -10/Materials Mutant | -10/Mines Mutant | -10/Exiles Mutant | -9/Mines Scavenger-Skirmisher | -8/Materials Scavenger-Skirmisher | -7/Factory Scavenger-Mutant | -6/Factory Mutant | -6/Lower Caves Mutant | -6/Lower Caves Mutant | -6/Data Miner Scavenger-Mutant | -5/Proximity Caves Mutant | -5/Factory Mutant | -5/Upper Caves Mutant | -5/Upper Caves Scavenger-Mutant | -5/Warlord Scavenger-Mutant | -4/Proximity Caves Scavenger-Mutant | -4/Factory Scavenger-Mutant | -4/Waste Scavenger-Mutant | -4/Factory Scavenger-Mutant | -4/Upper Caves Scavenger-Mutant | -4/Upper Caves Scavenger-Mutant | -4/Zhirov Scavenger-Mutant | -3/Proximity Caves Scavenger-Mutant | -3/Research Scavenger-Mutant | -3/Armory Scavenger-Tank | -2/Research Scavenger-Skirmisher | -1/Access Resources | -11 -10 -10 -10 -9 -8 -7 -6 -6 -6 -6 -5 -5 -5 -5 -5 -4 -4 -4 -4 -4 -4 -4 -3 -3 -3 -2 -1 ----------- Run | Scr Mat Min Exi Min Mat Fac Fac Low Low Dat Pro Fac Upp Upp War Pro Fac Was Fac Upp Upp Zhi Pro Res Arm Res Acc Matter Collected 8642 | 358 8 168 70 32 126 210 393 332 488 . 496 . 136 230 200 297 823 348 369 29 90 . 231 674 1097 228 1209 Remotely . | . . . . . . . . . . . . . . . . . . . . . . . . . . . . Salvage Created 13608 | 176 45 238 . 115 248 469 558 183 458 . 190 . . 297 . 288 942 801 496 . 90 . 134 1178 2159 100 4443 Parts 589 | 14 3 13 . 5 8 22 21 11 21 . 2 . . 3 . 2 38 8 31 . 2 . 7 76 113 1 188 Haulers Intercepted 3 | . . . . . . . 1 . . . . . . . . . . . . . . . . 2 . . . Recyclers Shooed 10 | . . . . . . 2 . . . . . . . . . . 2 . 1 . . . . 2 . . 3 Parts Field Recycled . | . . . . . . . . . . . . . . . . . . . . . . . . . . . . Retrieved Matter . | . . . . . . . . . . . . . . . . . . . . . . . . . . . . Parts Self-Destructed 103 | . . . . . . . . 8 19 . 3 . . . 65 2 . . . . 2 . 4 . . . . Prevented 9 | . . . . . . . . . . . . . . . 8 . . . . . . . 1 . . . . Kills | -11 -10 -10 -10 -9 -8 -7 -6 -6 -6 -6 -5 -5 -5 -5 -5 -4 -4 -4 -4 -4 -4 -4 -3 -3 -3 -2 -1 ------- Run | Scr Mat Min Exi Min Mat Fac Fac Low Low Dat Pro Fac Upp Upp War Pro Fac Was Fac Upp Upp Zhi Pro Res Arm Res Acc Combat Hostiles Destroyed 226 | . 1 7 . 2 5 8 11 9 8 . 7 . . . . 10 14 . 7 . 1 . 2 15 53 2 64 Melee 4 | . . . . . . . . . . . . . . . . . 1 . 1 . . . . . 2 . . Guns 72 | . 1 7 . 2 4 2 1 2 5 . . . . . . 5 2 . 5 . 1 . 1 11 16 . 7 Cannons 92 | . . . . . . 3 9 2 3 . 7 . . . . 5 11 . 1 . . . . 4 11 2 34 AOE 54 | . . . . . . 3 1 5 . . . . . . . . . . . . . . 1 . 22 . 22 Classes Destroyed 21 | 3 1 1 . . 2 1 3 1 1 . 2 . . . . . 1 . 1 . . . . . 2 1 1 Worker 18 | 2 . . . 1 . 1 2 . . . . . . . . . 4 . 1 . . . . 2 . . 5 Builder 7 | . . . . . . . . . . . . . . . . . 3 . . . . . . . . . 4 Tunneler 3 | 3 . . . . . . . . . . . . . . . . . . . . . . . . . . . Hauler 3 | . . . . . . . 1 . . . . . . . . . . . . . . . . 2 . . . Recycler 8 | 1 . . . . . 3 . . . . . . . . . . . . . . . . . . . . 4 Minesweeper 1 | . . . . . . . . . . . 1 . . . . . . . . . . . . . . . . Operator 1 | . . . . . . . . . . . . . . . . . . . 1 . . . . . . . . Watcher 12 | . . . . . . . 1 . . . . . . . . . 5 . . . . . . . 1 1 4 Swarmer 30 | . . 3 . . . . . 4 1 . . . . . . . . . . . . . 2 . 14 . 6 Saboteur 4 | . . . . . . . . . . . . . . . . . . . . . . . . . 3 . 1 Grunt 74 | . 1 4 . 2 3 5 3 3 3 . 4 . . . . 7 3 . . . . . . 2 5 . 29 Brawler 3 | . . . . . . . . . . . 1 . . . . . . . . . . . . . 1 . 1 Duelist 10 | . . . . . . . 1 1 1 . . . . . . 1 . . . . . . . . 2 . 4 Sentry 22 | . . . . . 1 1 3 . 1 . 1 . . . . . . . 2 . 1 . . 2 7 . 3 Demolisher 1 | . . . . . . . . . . . . . . . . . . . . . . . . . 1 . . Hunter 11 | . . . . . 1 . . . . . . . . . . 2 . . 2 . . . . . 6 . . Programmer 65 | . . . . . . 2 4 . 1 . . . . . . . 11 . 3 . . . . 11 14 . 19 Behemoth 2 | . . . . . . . . . 1 . 1 . . . . . . . . . . . . . . . . Striker 2 | . . . . . . . . . . . . . . . . . . . . . . . . . . 2 . Executioner 1 | . . . . . . . . . . . . . . . . . . . . . . . . . . . 1 Decomposer 5 | . . . . . . . . . . . . . . 4 . . . . . . . . 1 . . . . Packrat 3 | . . . . . . . . . . . . . . 2 . . . . . . . . 1 . . . . Thief 1 | . . . . . . . . 1 . . . . . . . . . . . . . . . . . . . Thug 1 | . . . . . . . . . . . . . . . . . . . . . . . . . . . 1 Best Kill Streak 12 | 2 1 4 . 2 1 4 5 4 3 . 2 . . . . 4 5 . 2 . 1 . 2 6 8 1 12 Combat Bots Only 9 | . 1 4 . 2 1 3 4 4 3 . 2 . . . . 4 4 . 2 . 1 . 2 4 7 1 9 Max Kills in Single Turn 4 | 1 1 1 . 2 1 2 1 2 1 . 1 . . 1 . 1 2 . 2 . 1 . 1 1 4 1 4 Gunslinging 1 | . . . . 1 . . . 1 . . . . . . . . . . 1 . . . . . . . . Exploded 4 | . . . . . . 1 1 2 . . . . . . . . . . . . . . 1 . 4 . 3 Melee 1 | . . . . . . . . . . . . . . . . . 1 . 1 . . . . . 1 . . Uniques/NPCs Destroyed . | . . . . . . . . . . . . . . . . . . . . . . . . . . . . Combat | -11 -10 -10 -10 -9 -8 -7 -6 -6 -6 -6 -5 -5 -5 -5 -5 -4 -4 -4 -4 -4 -4 -4 -3 -3 -3 -2 -1 -------- Run | Scr Mat Min Exi Min Mat Fac Fac Low Low Dat Pro Fac Upp Upp War Pro Fac Was Fac Upp Upp Zhi Pro Res Arm Res Acc Damage Taken 32451 | . 12 297 . 66 442 360 956 509 1634 . 1725 298 552 . 541 1895 3590 . 1521 . 186 . 218 2081 6498 94 8976 Core 4359 | . . 33 . . 55 71 63 15 229 . 493 143 362 . 198 164 378 . 134 . . . . 242 308 . 1471 Absorbed by Shields 1943 | . . . . . . . . . . . . . . . 260 374 258 . . . . . . . 440 . 611 Reduced by Siege Mode 1297 | . . . . . . . . . . . . . . . . . . . . . . . . . 338 . 959 Core Remaining (%) 66 | 100 . . . 86 90 89 . . . . 5 . . . . 13 . . . . . . 55 . 57 100 . Volleys Fired 920 | 22 2 24 . 4 31 33 86 23 37 . 53 5 . 17 10 40 131 . 36 . 6 . 4 52 124 10 170 Largest 3 | 2 2 2 . 2 3 3 3 3 3 . 2 1 . 2 3 3 2 . 2 . 2 . 2 3 3 3 3 Hottest 289 | 40 40 60 . 60 201 228 212 120 120 . 101 53 . 168 233 190 146 . 123 . 123 . 123 228 263 263 289 Shots Fired 1729 | 44 4 48 . 8 59 68 127 44 69 . 80 5 . 18 12 78 194 . 63 . 13 . 6 141 253 21 374 Gun 841 | 44 4 48 . 8 59 46 28 32 56 . . . . 18 2 30 27 . 53 . 13 . 5 109 150 4 105 Cannon 818 | . . . . . . 14 90 7 12 . 80 5 . . 10 48 167 . 10 . . . . 32 79 17 247 Launcher 70 | . . . . . . 8 9 5 1 . . . . . . . . . . . . . 1 . 24 . 22 Special . | . . . . . . . . . . . . . . . . . . . . . . . . . . . . Kinetic 710 | 44 4 47 . 4 17 . 37 32 56 . 80 5 . . 10 40 91 . 29 . 7 . 3 66 34 4 100 Thermal 826 | . . 1 . 4 42 60 81 7 12 . . . . 18 2 7 20 . 34 . 6 . 2 66 195 17 252 Explosive 70 | . . . . . . 8 9 5 1 . . . . . . . . . . . . . 1 . 24 . 22 Electromagnetic 74 | . . . . . . . . . . . . . . . . . 74 . . . . . . . . . . Entropic 49 | . . . . . . . . . . . . . . . . 31 9 . . . . . . 9 . . . Robot Hit Streak 40 | 7 5 6 . 6 10 10 19 9 19 . 18 . . 8 4 8 13 . 8 . 5 . 1 17 40 26 32 Robot Miss Streak 8 | 8 . 4 . 1 2 2 4 4 4 . 5 . . 2 7 8 4 . 6 . 2 . 2 3 3 1 4 Penetration Max 1 | . . . . . . . . . . . 1 . . . . 1 . . 1 . . . . 1 1 . 1 Secondary Targets 9 | . . 2 . 1 1 . . 1 1 . . . . . . . . . 1 . . . . . 2 . . Max Gunslinging Chain 1 | . . 1 . 1 1 . . 1 1 . . . . . . . . . 1 . . . . . 1 . . Shots Hit Robots 1177 | 22 3 26 . 6 42 35 63 27 50 . 64 . . 12 5 55 126 23 44 . 8 . 3 107 202 11 243 Core Hits 589 | 9 2 14 . 4 11 25 45 15 21 . 17 1 . 9 . 22 44 6 18 . 2 . 5 36 113 5 165 Critical Hits 65 | . . . . 1 . . . . 2 . 8 . . 1 . 4 8 3 10 . 2 . . 10 8 . 8 Critical Kills 19 | . . . . 1 . . . . . . 1 . . 1 . . 1 . 4 . . . . 5 4 . 2 Critical Parts Destroyed 40 | . . . . . . . . . . . 6 . . . . 4 7 2 6 . 1 . . 5 3 . 6 Melee Attacks 118 | . . . . . . . . . . . . . . . . . 38 23 13 . 2 . 6 17 18 . 1 Impact 36 | . . . . . . . . . . . . . . . . . 36 . . . . . . . . . . Slashing . | . . . . . . . . . . . . . . . . . . . . . . . . . . . . Piercing 82 | . . . . . . . . . . . . . . . . . 2 23 13 . 2 . 6 17 18 . 1 Sneak Attacks 5 | . . . . . . . . . . . . . . . . . 1 . 1 . . . 2 1 . . . Combat Hostiles 1 | . . . . . . . . . . . . . . . . . 1 . . . . . . . . . . Follow-up Attacks . | . . . . . . . . . . . . . . . . . . . . . . . . . . . . Damage Inflicted 53187 | 209 34 248 . 69 648 1406 2307 1448 1321 . 1947 2 . 306 169 2214 5272 1581 1461 . 185 . 640 3277 10656 501 17286 Guns 13900 | 209 34 248 . 69 648 497 310 294 925 . . . . 306 . 874 338 . 807 . 185 . 31 1970 3942 71 2142 Cannons 20860 | . . . . . . 194 1221 235 392 . 1947 . . . 169 1340 3572 . 324 . . . . 1103 2271 399 7693 Explosions 14865 | . . . . . . 715 776 919 4 . . . . . . . 605 . . . . . 244 . 4219 . 7383 Melee 3488 | . . . . . . . . . . . . . . . . . 757 1581 330 . . . 365 204 224 . 27 Ramming 74 | . . . . . . . . . . . . 2 . . . . . . . . . . . . . 31 41 Kinetic 11777 | 209 34 238 . 34 120 . 589 294 925 . 1947 . . . 169 982 2068 . 462 . 26 . . 888 657 71 2064 Thermal 19889 | . . 10 . 35 528 691 942 235 392 . . . . 306 . 159 316 . 669 . 159 . 31 1690 5556 399 7771 Explosive 14865 | . . . . . . 715 776 919 4 . . . . . . . 605 . . . . . 244 . 4219 . 7383 Electromagnetic 962 | . . . . . . . . . . . . . . . . . 962 . . . . . . . . . . Impact 696 | . . . . . . . . . . . . . . . . . 696 . . . . . . . . . . Slashing . | . . . . . . . . . . . . . . . . . . . . . . . . . . . . Piercing 2792 | . . . . . . . . . . . . . . . . . 61 1581 330 . . . 365 204 224 . 27 Entropic 2132 | . . . . . . . . . . . . . . . . 1073 564 . . . . . . 495 . . . Highest Corruption 51 | . . . . . . 3 8 8 9 9 18 . . . . . 40 40 51 51 51 51 51 13 21 . 49 Average Corruption 19 | . . . . . . 2 5 8 8 9 9 . . . . . 18 40 45 51 51 51 51 7 14 . 10 Corruption Purged 25 | . . . . . . . . . . . . . . . . . . . . . . . . 8 17 . . Effects 963 | . . . . . . 8 37 19 36 2 37 . . . . . 137 36 141 25 41 18 76 38 175 . 137 Message Errors 145 | . . . . . . 2 10 1 4 . 5 . . . . . 13 5 16 2 6 2 19 9 29 . 22 Matter Fused 138 | . . . . . . 1 8 4 10 . 11 . . . . . 17 3 20 2 7 6 10 5 20 . 14 Heat Flow Errors 70 | . . . . . . 1 3 2 5 1 4 . . . . . 7 1 6 4 2 2 4 4 11 . 13 Energy Discharges 75 | . . . . . . 1 3 2 7 1 4 . . . . . 12 2 9 3 . 1 2 5 11 . 12 Parts Rejected 8 | . . . . . . . . . . . 1 . . . . . 2 . . . . . 1 . 3 . 1 Data Loss (minor) 86 | . . . . . . 2 1 6 1 . 3 . . . . . 11 4 10 3 3 2 7 3 16 . 14 Data Loss (major) 27 | . . . . . . . 3 . . . 1 . . . . . 1 3 4 1 2 . 1 2 6 . 3 Misfires 32 | . . . . . . . 2 1 . . 1 . . . . . 8 . 3 . 1 . 1 1 12 . 2 Alerts 5 | . . . . . . . . . . . . . . . . . 1 . 1 . . . 1 . 1 . 1 Misdirections 143 | . . . . . . . . . . . 2 . . . . . 19 8 38 10 9 5 22 3 17 . 10 Targeting Errors 199 | . . . . . . 1 7 3 8 . 5 . . . . . 39 10 27 . 11 . 7 6 38 . 37 Weapon Failures 35 | . . . . . . . . . 1 . . . . . . . 7 . 7 . . . 1 . 11 . 8 Overload Shots 1 | . . . . . . . . . . . . . . . . . . . 1 . . . . . . . . Overflow Damage 2503 | . . . . . . 7 43 100 . . 70 . . . . 63 614 160 . . . . . 213 487 20 726 Projectiles 1252 | . . . . . . . . 57 . . 70 . . . . 63 400 . . . . . . 108 129 14 411 Explosions 849 | . . . . . . 7 43 43 . . . . . . . . 114 . . . . . . . 327 . 315 Melee 402 | . . . . . . . . . . . . . . . . . 100 160 . . . . . 105 31 6 . Knockbacks 65 | . . . . . . . 7 . . . 11 . . . . 11 32 . 3 . . . . . . . 1 Impact 7 | . . . . . . . . . . . . . . . . . 6 . . . . . . . . . 1 Kinetic 55 | . . . . . . . 6 . . . 11 . . . . 11 24 . 3 . . . . . . . . Secondary 3 | . . . . . . . 1 . . . . . . . . . 2 . . . . . . . . . . Self-Inflicted Damage 458 | . . . . . . . 13 34 26 . . 1 . . . . 123 . . . . . 17 . 94 . 150 Shots 13 | . . . . . . . 1 1 1 . . . . . . . 2 . . . . . 1 . 3 . 4 Rammed 6 | . . . . . . . . . . . . 1 . . . . . . . . . . . . . 1 4 Targets Rammed 8 | . . . . . . . . . . . 1 1 . . . . . . . . . . . . . 1 5 Kicked 1 | . . . . . . . . . . . 1 . . . . . . . . . . . . . . . . Crushed 1 | . . . . . . . . . . . . . . . . . . . . . . . . . . . 1 Highest Temperature 483 | . . 20 . 39 213 380 156 203 348 170 205 . . 96 483 40 248 83 441 254 210 238 242 249 218 84 219 Average Temperature 92 | . . 9 . 27 98 74 57 79 136 86 90 . . 39 198 15 65 48 127 113 93 93 110 107 53 28 85 Received Heat Transfer 3350 | . 6 84 . 39 198 120 165 57 315 . 246 72 48 . . 239 251 . . . 36 . . 18 314 . 1142 Effects 11 | . . . . . . 1 . . 1 . . . . . 4 . . . 5 . . . . . . . . Shutdowns 5 | . . . . . . . . . . . . . . . 2 . . . 3 . . . . . . . . Energy Bleed 1 | . . . . . . 1 . . . . . . . . . . . . . . . . . . . . . Interference 4 | . . . . . . . . . . . . . . . 2 . . . 2 . . . . . . . . Damage (minor) 1 | . . . . . . . . . 1 . . . . . . . . . . . . . . . . . . Siege Activations 9 | . . . . . . . . . . . . . . . . . . . . . . . . . 3 . 6 Total Turns 355 | . . . . . . . . . . . . . . . . . . . . . . . . . 166 . 189 Longest Duration 88 | . . . . . . . . . . . . . . . . . . . . . . . . . 88 . 43 Robots Corrupted 2 | . . . . . . . . . . . . . . . . . 2 . . . . . . . . . . Combat Hostiles . | . . . . . . . . . . . . . . . . . . . . . . . . . . . . Parts Fried 8 | . . . . . . . . . . . . . . . . . 8 . . . . . . . . . . Impact Corruptions 9 | . . . . . . . . . . . . . . . . . 8 . . . . . . . . 1 . Robots Melted 4 | . . . . . 1 . . . . . . . . . . . . . . . . . . . 2 . 1 Combat Hostiles 4 | . . . . . 1 . . . . . . . . . . . . . . . . . . . 2 . 1 Parts Melted 53 | . . . . . 2 2 5 . 4 . . . . . . . 2 . . . . . . 5 16 . 17 Heat Transferred 21396 | . . 25 . 75 1076 1188 1409 560 880 . . . . 457 . 375 509 . 844 . 185 . 37 1887 5025 370 6494 Parts Sabotaged 2 | . . . . . . . . . . . . . . . . . . . . . . . . . . . 2 Parts Stolen 1 | . . . . . . . . 1 . . . . . . . . . . . . . . . . . . . Parts Stripped . | . . . . . . . . . . . . . . . . . . . . . . . . . . . . Power Chain Reactions . | . . . . . . . . . . . . . . . . . . . . . . . . . . . . Missiles Intercepted . | . . . . . . . . . . . . . . . . . . . . . . . . . . . . Alert | -11 -10 -10 -10 -9 -8 -7 -6 -6 -6 -6 -5 -5 -5 -5 -5 -4 -4 -4 -4 -4 -4 -4 -3 -3 -3 -2 -1 ------- Run | Scr Mat Min Exi Min Mat Fac Fac Low Low Dat Pro Fac Upp Upp War Pro Fac Was Fac Upp Upp Zhi Pro Res Arm Res Acc Peak Influence 2134 | 30 115 219 . 55 126 427 279 . . . . 47 . . . . 525 148 186 . . . . 131 1271 672 2134 Initial 666 | . 19 44 . . 21 13 117 . . . . 9 . . . . 44 148 103 . . . . . 60 666 328 Average 320 | 14 37 87 . 50 76 194 90 . . . . 12 . . . . 238 148 67 . . . . 61 372 554 1017 Maximum Alert Level 5 | . . 1 . . . 2 1 . . . . . . . . . 2 . . . . . . . 4 2 5 Low Security (%) 58 | 100 100 94 . 100 100 32 80 . . . . 100 . . . . 55 100 100 . . . . 100 48 . . Level 1 10 | . . 5 . . . 66 19 . . . . . . . . . 5 . . . . . . . 7 9 3 Level 2 19 | . . . . . . . . . . . . . . . . . 38 . . . . . . . 22 90 36 Level 3 5 | . . . . . . . . . . . . . . . . . . . . . . . . . 19 . 19 Level 4 3 | . . . . . . . . . . . . . . . . . . . . . . . . . 2 . 23 Level 5 . | . . . . . . . . . . . . . . . . . . . . . . . . . . . . High Security 2 | . . . . . . . . . . . . . . . . . . . . . . . . . . . 17 Max Security . | . . . . . . . . . . . . . . . . . . . . . . . . . . . . Squads Dispatched 75 | . . . . . 3 4 6 . . . . . . . . . 13 . 4 . . . . 5 8 . 32 Investigation 5 | . . . . . . 2 . . . . . . . . . . 1 . . . . . . . 1 . 1 Extermination 28 | . . . . . . 1 4 . . . . . . . . . 7 . 2 . . . . 4 5 . 5 Reinforcement 15 | . . . . . . 1 2 . . . . . . . . . 1 . 2 . . . . 1 1 . 7 Assault 21 | . . . . . . . . . . . . . . . . . 1 . . . . . . . 1 . 19 Garrison 6 | . . . . . 3 . . . . . . . . . . . 3 . . . . . . . . . . Intercept . | . . . . . . . . . . . . . . . . . . . . . . . . . . . . Construction Impeded 5 | . . . . . . . . . . . . . . . . . . . 1 . . . . 1 . . 3 Haulers Reinforced 3 | . . . . . . 1 1 . . . . . . . . . . . . . . . . . . . 1 Stealth | -11 -10 -10 -10 -9 -8 -7 -6 -6 -6 -6 -5 -5 -5 -5 -5 -4 -4 -4 -4 -4 -4 -4 -3 -3 -3 -2 -1 --------- Run | Scr Mat Min Exi Min Mat Fac Fac Low Low Dat Pro Fac Upp Upp War Pro Fac Was Fac Upp Upp Zhi Pro Res Arm Res Acc Distress Signals 23 | . 1 . . . 3 . . . . . . . . . 2 . 1 . . . . . . 2 2 8 4 Communications Jammed . | . . . . . . . . . . . . . . . . . . . . . . . . . . . . Distress Signals . | . . . . . . . . . . . . . . . . . . . . . . . . . . . . Times Spotted 421 | . 8 7 . 2 8 11 19 11 8 . 19 4 8 . 24 10 34 . 16 . 1 . 3 20 70 5 133 Peak Tracking Total 21 | . 5 3 . 2 3 4 4 4 4 . 5 3 4 . 11 4 5 . 4 . 1 . 3 3 6 2 21 Tactical Retreats 29 | . 1 . . . . 1 3 1 . . 6 1 3 . . . 5 . . . . . . 1 2 . 5 Traps | -11 -10 -10 -10 -9 -8 -7 -6 -6 -6 -6 -5 -5 -5 -5 -5 -4 -4 -4 -4 -4 -4 -4 -3 -3 -3 -2 -1 ------- Run | Scr Mat Min Exi Min Mat Fac Fac Low Low Dat Pro Fac Upp Upp War Pro Fac Was Fac Upp Upp Zhi Pro Res Arm Res Acc Traps Triggered 9 | . . . . . . 1 1 . . . . 1 . . . . 1 . . . . . . 1 3 . 1 Indirectly . | . . . . . . . . . . . . . . . . . . . . . . . . . . . . Trap Hack Attempts . | . . . . . . . . . . . . . . . . . . . . . . . . . . . . Triggered . | . . . . . . . . . . . . . . . . . . . . . . . . . . . . Disarmed . | . . . . . . . . . . . . . . . . . . . . . . . . . . . . Reprogrammed . | . . . . . . . . . . . . . . . . . . . . . . . . . . . . Reused . | . . . . . . . . . . . . . . . . . . . . . . . . . . . . Traps Extracted . | . . . . . . . . . . . . . . . . . . . . . . . . . . . . Installed . | . . . . . . . . . . . . . . . . . . . . . . . . . . . . Triggered 13 | . . . . . . . . . 2 . . . . . 8 . . . . . . . 3 . . . . Machines | -11 -10 -10 -10 -9 -8 -7 -6 -6 -6 -6 -5 -5 -5 -5 -5 -4 -4 -4 -4 -4 -4 -4 -3 -3 -3 -2 -1 ---------- Run | Scr Mat Min Exi Min Mat Fac Fac Low Low Dat Pro Fac Upp Upp War Pro Fac Was Fac Upp Upp Zhi Pro Res Arm Res Acc Machines Disabled 51 | . . . . . . . 2 1 . . . . . . 1 . 19 . 2 . 1 . . 1 13 1 10 Max in Single Turn 4 | . . . . . . . 1 1 . . . . . . . . 4 . 1 . 1 . . 1 3 1 1 Garrison Access 4 | . . . . . . . . . . . . . . . . . . . . . . . . . . 2 2 Energy Cycler 1 | . . . . . . . . . . . . . . . . . . . . . . . . . 1 . . Machines Sabotaged . | . . . . . . . . . . . . . . . . . . . . . . . . . . . . Garrisons Compromised . | . . . . . . . . . . . . . . . . . . . . . . . . . . . . Overloaded Fab Kills . | . . . . . . . . . . . . . . . . . . . . . . . . . . . . Fab Network Shutdowns 1 | . . . . . . 1 . . . . . . . . . . . . . . . . . . . . . Hacking | -11 -10 -10 -10 -9 -8 -7 -6 -6 -6 -6 -5 -5 -5 -5 -5 -4 -4 -4 -4 -4 -4 -4 -3 -3 -3 -2 -1 --------- Run | Scr Mat Min Exi Min Mat Fac Fac Low Low Dat Pro Fac Upp Upp War Pro Fac Was Fac Upp Upp Zhi Pro Res Arm Res Acc Machines Accessed 67 | . 4 1 3 . 3 8 5 . 1 4 . . 1 . 1 . 3 . 4 . 1 9 . 6 3 2 8 Terminals 29 | . 3 . . . 2 4 4 . . . . . . . . . 1 . 4 . . . . 3 3 1 4 Fabricators 8 | . . . . . . 2 1 . . . . . . . . . 2 . . . . . . 1 . . 2 Repair Stations 1 | . . . . . . . . . . . . . . . . . . . . . . . . 1 . . . Recycling Units 2 | . 1 . . . 1 . . . . . . . . . . . . . . . . . . . . . . Scanalyzers 1 | . . . . . . 1 . . . . . . . . . . . . . . . . . . . . . Garrison Access 5 | . . . . . . 1 . . . . . . . . . . . . . . . . . 1 . 1 2 Total Hacks 214 | . 13 1 40 . 8 18 10 . 1 26 . . 1 . 1 . 6 . 8 . 1 48 . 8 5 7 12 Successful 152 | . 7 1 40 . 4 3 2 . 1 26 . . 1 . 1 . 2 . 5 . 1 48 . 3 2 2 3 Failed 61 | . 6 . . . 4 15 8 . . . . . . . . . 4 . 3 . . . . 5 3 4 9 Catastrophic 17 | . 1 . . . . 2 2 . . . . . . . . . 1 . 2 . . . . . 2 1 6 Database Lockouts 1 | . . . . . . . . . . . . . . . . . . . . . . . . . . 1 . Manual 52 | . 11 . 1 . 4 9 9 . . . . . . . . . 2 . 6 . . . . 3 1 5 1 Terminals 64 | . 12 . . . 6 9 9 . . . . . . . . . 2 . 8 . . . . 3 5 4 6 Fabricators 14 | . . . . . . 4 1 . . . . . . . . . 4 . . . . . . 1 . . 4 Repair Stations 3 | . . . . . . . . . . . . . . . . . . . . . . . . 3 . . . Recycling Units 3 | . 1 . . . 2 . . . . . . . . . . . . . . . . . . . . . . Scanalyzers 3 | . . . . . . 3 . . . . . . . . . . . . . . . . . . . . . Garrison Access 8 | . . . . . . 2 . . . . . . . . . . . . . . . . . 1 . 3 2 Terminal Hacks 131 | . 2 1 40 . 1 1 1 . 1 26 . . 1 . 1 . . . 2 . 1 48 . . 2 2 1 Record 90 | . . . 40 . . . . . . 11 . . . . . . . . . . 1 36 . . . 2 . Part Schematic 11 | . . . . . . . . . . 6 . . . . . . . . . . . 4 . . . . 1 Robot Schematic 6 | . . . . . . . . . . 6 . . . . . . . . . . . . . . . . . Robot Analysis 4 | . . . . . . . . . . . . . . . . . . . . . . 4 . . . . . Prototype ID Bank 9 | . . . . . . 1 1 . . 3 . . . . . . . . . . . 4 . . . . . Open Door 5 | . . 1 . . . . . . 1 . . . 1 . 1 . . . . . . . . . 1 . . Branch Access Points 1 | . 1 . . . . . . . . . . . . . . . . . . . . . . . . . . Emergency Access Points 1 | . . . . . . . . . . . . . . . . . . . 1 . . . . . . . . Alert Level 1 | . . . . . . . . . . . . . . . . . . . 1 . . . . . . . . Unreport Threat 1 | . . . . . . . . . . . . . . . . . . . . . . . . . 1 . . Zone Layout 2 | . 1 . . . 1 . . . . . . . . . . . . . . . . . . . . . . Fabricator Hacks 4 | . . . . . . 1 . . . . . . . . . . 1 . . . . . . 1 . . 1 Load Schematic 1 | . . . . . . . . . . . . . . . . . . . . . . . . . . . 1 Build 3 | . . . . . . 1 . . . . . . . . . . 1 . . . . . . 1 . . . Repair Station Hacks 2 | . . . . . . . . . . . . . . . . . . . . . . . . 2 . . . Scan Component 1 | . . . . . . . . . . . . . . . . . . . . . . . . 1 . . . Repair 1 | . . . . . . . . . . . . . . . . . . . . . . . . 1 . . . Recycling Unit Hacks 3 | . 1 . . . 2 . . . . . . . . . . . . . . . . . . . . . . Report Inventory 2 | . 1 . . . 1 . . . . . . . . . . . . . . . . . . . . . . Retrieve Components 1 | . . . . . 1 . . . . . . . . . . . . . . . . . . . . . . Scanalyzer . | . . . . . . . . . . . . . . . . . . . . . . . . . . . . Garrison Access Hacks 1 | . . . . . . . . . . . . . . . . . . . . . . . . . . . 1 Seal Access 1 | . . . . . . . . . . . . . . . . . . . . . . . . . . . 1 Unauthorized Hacks 11 | . 4 . . . 1 1 1 . . . . . . . . . 1 . 3 . . . . . . . . Terminals 11 | . 4 . . . 1 1 1 . . . . . . . . . 1 . 3 . . . . . . . . Assimilate 3 | . 1 . . . . . . . . . . . . . . . 1 . 1 . . . . . . . . Botnet 8 | . 3 . . . 1 1 1 . . . . . . . . . . . 2 . . . . . . . . Fabricators . | . . . . . . . . . . . . . . . . . . . . . . . . . . . . Repair Stations . | . . . . . . . . . . . . . . . . . . . . . . . . . . . . Recycling Units . | . . . . . . . . . . . . . . . . . . . . . . . . . . . . Scanalyzers . | . . . . . . . . . . . . . . . . . . . . . . . . . . . . Garrison Access . | . . . . . . . . . . . . . . . . . . . . . . . . . . . . Data Cores Recovered . | . . . . . . . . . . . . . . . . . . . . . . . . . . . . Used . | . . . . . . . . . . . . . . . . . . . . . . . . . . . . Hacking Detections 38 | . 3 . . . 2 7 5 . . . . . . . . . 3 . 3 . . . . 3 3 2 7 Full Trace Events 4 | . . . . . . 2 . . . . . . . . . . 1 . . . . . . . 1 . . Feedback Events . | . . . . . . . . . . . . . . . . . . . . . . . . . . . . Feedback Blocked . | . . . . . . . . . . . . . . . . . . . . . . . . . . . . Robot Schematics Acquired 6 | . . . . . . . . . . 6 . . . . . . . . . . . . . . . . . Robots Built 1 | . . . . . . . . . . . . . . . . . . . . . . . . 1 . . . Matter 153 | . . . . . . . . . . . . . . . . . . . . . . . . 153 . . . Time 27 | . . . . . . . . . . . . . . . . . . . . . . . . 27 . . . Total Robot Build Rating 1 | . . . . . . . . . . . . . . . . . . . . . . . . 1 . . . Part Schematics Acquired 11 | . . . . . . . . . . 6 . . . . . . . . . . . 4 . . . . 1 Parts Built 3 | . . . . . . 2 . . . . . . . . . . 1 . . . . . . . . . . Matter 424 | . . . . . . 190 . . . . . . . . . . 234 . . . . . . . . . . Time 164 | . . . . . . 47 . . . . . . . . . . 117 . . . . . . . . . . Total Part Build Rating 17 | . . . . . . 10 . . . . . . . . . . 7 . . . . . . . . . . Parts Repaired 1 | . . . . . . . . . . . . . . . . . . . . . . . . 1 . . . Time 44 | . . . . . . . . . . . . . . . . . . . . . . . . 44 . . . Parts Recycled . | . . . . . . . . . . . . . . . . . . . . . . . . . . . . Recycled Matter . | . . . . . . . . . . . . . . . . . . . . . . . . . . . . Retrieved Matter . | . . . . . . . . . . . . . . . . . . . . . . . . . . . . Retrieved Components 6 | . . . . . 6 . . . . . . . . . . . . . . . . . . . . . . Parts Scanalyzed . | . . . . . . . . . . . . . . . . . . . . . . . . . . . . Part Schematics Acquired . | . . . . . . . . . . . . . . . . . . . . . . . . . . . . Parts Damaged . | . . . . . . . . . . . . . . . . . . . . . . . . . . . . Bothacking | -11 -10 -10 -10 -9 -8 -7 -6 -6 -6 -6 -5 -5 -5 -5 -5 -4 -4 -4 -4 -4 -4 -4 -3 -3 -3 -2 -1 ------------ Run | Scr Mat Min Exi Min Mat Fac Fac Low Low Dat Pro Fac Upp Upp War Pro Fac Was Fac Upp Upp Zhi Pro Res Arm Res Acc Used RIF Installer . | . . . . . . . . . . . . . . . . . . . . . . . . . . . . Robots Hacked . | . . . . . . . . . . . . . . . . . . . . . . . . . . . . Non-combat . | . . . . . . . . . . . . . . . . . . . . . . . . . . . . Combat . | . . . . . . . . . . . . . . . . . . . . . . . . . . . . Robot Hacks Applied . | . . . . . . . . . . . . . . . . . . . . . . . . . . . . Relay Couplers Released 6 | . . . . . . . . . . . . . . . . . . . . . . . . . . 3 3 Machine Destruction 6 | . . . . . . . . . . . . . . . . . . . . . . . . . . 3 3 Robots Rewired 14 | . . . . . . . . . . . . . . . 5 . . . . . . . . . 9 . . Allies Hacked 5 | . . . . . . . . . . . . . . . . . 1 . . . . . . . 4 . . Hacks Repelled . | . . . . . . . . . . . . . . . . . . . . . . . . . . . . Allies | -11 -10 -10 -10 -9 -8 -7 -6 -6 -6 -6 -5 -5 -5 -5 -5 -4 -4 -4 -4 -4 -4 -4 -3 -3 -3 -2 -1 -------- Run | Scr Mat Min Exi Min Mat Fac Fac Low Low Dat Pro Fac Upp Upp War Pro Fac Was Fac Upp Upp Zhi Pro Res Arm Res Acc Total Allies 18 | . 1 . . . . . . . . . 1 . . . 5 . 1 . . . . . . 1 9 . . Largest Group 6 | . 1 1 1 1 1 . . . . . 1 . . . 5 1 1 . . . . . . 1 6 . . Highest-Rated Group 330 | . 10 10 10 10 10 . . . . . 94 . . . 232 60 10 . . . . . . 10 330 . . Highest-Rated Ally 94 | . 10 10 10 10 10 . . . . . 94 . . . 60 60 10 . . . . . . 10 60 . . Total Orders 7 | . . 2 1 . 1 . . . . . . . . . . . . . . . . . . 1 2 . . STAY 3 | . . . . . 1 . . . . . . . . . . . . . . . . . . 1 1 . . FOLLOW 1 | . . . . . . . . . . . . . . . . . . . . . . . . . 1 . . RETURN 3 | . . 2 1 . . . . . . . . . . . . . . . . . . . . . . . . Ally Attacks 54 | . . . . . . . . . . . 10 . . . 37 . . . . . . . . . 7 . . Total Damage 2253 | . . . . . . . . . . . 492 . . . 1589 . . . . . . . . . 172 . . Kills 10 | . . . . . . . . . . . 2 . . . 8 . . . . . . . . . . . . Allies Corrupted 2 | . . . . . . . . . . . . . . . . . . . . . . . . . 2 . . Allies Melted . | . . . . . . . . . . . . . . . . . . . . . . . . . . . . Intel | -11 -10 -10 -10 -9 -8 -7 -6 -6 -6 -6 -5 -5 -5 -5 -5 -4 -4 -4 -4 -4 -4 -4 -3 -3 -3 -2 -1 ------- Run | Scr Mat Min Exi Min Mat Fac Fac Low Low Dat Pro Fac Upp Upp War Pro Fac Was Fac Upp Upp Zhi Pro Res Arm Res Acc Robot Analysis Total 4 | . . . . . . . . . . . . . . . . . . . . . . 4 . . . . . Derelict Logs Recovered 13 | . . 2 . 1 . . . . 1 . 2 . 2 2 . 2 . . . 1 . . . . . . . Drone Launches 3 | . . 3 . . . . . . . . . . . . . . . . . . . . . . . . . Drone Recoveries 3 | . . 2 1 . . . . . . . . . . . . . . . . . . . . . . . . Exploration | -11 -10 -10 -10 -9 -8 -7 -6 -6 -6 -6 -5 -5 -5 -5 -5 -4 -4 -4 -4 -4 -4 -4 -3 -3 -3 -2 -1 ------------- Run | Scr Mat Min Exi Min Mat Fac Fac Low Low Dat Pro Fac Upp Upp War Pro Fac Was Fac Upp Upp Zhi Pro Res Arm Res Acc Turns Passed 25250 | 255 289 718 980 330 544 1210 2367 408 859 40 765 332 456 577 629 700 2443 383 1330 270 345 244 844 1500 2578 1018 2836 Spaces Moved 15010 | 148 175 380 581 170 237 629 1220 286 688 81 711 140 788 432 448 467 1379 276 892 233 267 174 425 884 1050 524 1325 Core 1487 | 8 . . . . . . . . 66 81 404 122 739 43 . . . . . . . . . . . . 24 Treads 2822 | . . . . . . . . . . . . . . 150 . . . 2 62 . 3 . . 25 770 524 1286 Legs 4088 | 140 175 380 581 170 237 629 980 . . . 282 . . . 59 438 2 . . . . . . . . . 15 Wheels 6546 | . . . . . . . 240 286 622 . 25 . . 239 389 29 1377 274 830 233 264 174 425 859 280 . . Hover 67 | . . . . . . . . . . . . 18 49 . . . . . . . . . . . . . . Flight . | . . . . . . . . . . . . . . . . . . . . . . . . . . . . Fastest Speed 50 | 50 120 120 120 150 150 150 110 110 50 50 50 50 50 50 100 110 102 110 110 110 110 130 115 106 106 156 50 Average Speed 123 | 120 120 148 165 170 150 150 144 115 104 50 80 58 54 123 117 119 109 110 113 110 115 130 120 111 142 156 153 Slowest Speed 270 | 200 120 150 180 180 150 150 153 120 120 50 150 150 150 180 270 180 240 180 160 110 160 130 150 180 165 157 157 Overloaded Moves . | . . . . . . . . . . . . . . . . . . . . . . . . . . . . Propulsion Burnouts . | . . . . . . . . . . . . . . . . . . . . . . . . . . . . Robots Hopped . | . . . . . . . . . . . . . . . . . . . . . . . . . . . . Cave-ins Triggered 2 | . . . . . . . 1 . . . . . . . . . 1 . . . . . . . . . . Teleports 1 | . . . . . . . . . . . . . . . . . . . . . . . . . . . 1 Exploration Rate (%) 47 | 7 20 65 80 33 18 24 33 45 87 75 61 5 90 63 65 66 23 96 23 46 50 62 61 20 51 18 40 Regions Visited 27 Branch Regions 16 Pre-discovered Areas 8 | . . . 1 . . . . . . 1 . . . 1 . 2 . . . . . 3 . . . . . Known Exits Taken 7 | . 1 1 . . 1 . . 1 . . . . . 1 . . . . . 1 . . . 1 . . . Unknown Exits Taken 18 | 1 . . 1 1 . 1 1 . 1 1 1 1 1 . 1 1 . . 1 . 1 1 1 . 1 1 . Scrap Searched 16 | . . 2 . . . . . 5 2 . . . 2 2 . . . . . 2 . . 1 . . . . Spaces Dug 170 | . . . . . . 6 41 . 1 . . 4 . . . . 30 . 7 . . . 26 13 14 2 26 Terrain Destroyed 1038 | . . . . . . 25 63 108 17 . 11 4 . . . 55 121 . 18 . 1 . 27 26 282 7 273 Melee 33 | . . . . . . . . . . . . . . . . . 11 . 6 . . . 2 12 2 . . Projectile 328 | . . . . . . 8 45 1 2 . 11 4 . . . 55 45 . 12 . 1 . 1 14 38 7 84 AOE 677 | . . . . . . 17 18 107 15 . . . . . . . 65 . . . . . 24 . 242 . 189 Terrain Rammed . | . . . . . . . . . . . . . . . . . . . . . . . . . . . . Walls Destroyed . | . . . . . . . . . . . . . . . . . . . . . . . . . . . . Machines Disabled . | . . . . . . . . . . . . . . . . . . . . . . . . . . . . Actions | -11 -10 -10 -10 -9 -8 -7 -6 -6 -6 -6 -5 -5 -5 -5 -5 -4 -4 -4 -4 -4 -4 -4 -3 -3 -3 -2 -1 --------- Run | Scr Mat Min Exi Min Mat Fac Fac Low Low Dat Pro Fac Upp Upp War Pro Fac Was Fac Upp Upp Zhi Pro Res Arm Res Acc Total 19928 | 182 252 493 602 204 371 840 1719 326 763 80 827 384 812 455 534 529 2056 308 1117 246 286 191 738 1260 1850 704 1799 Wait 3029 | . 68 74 . 20 87 146 370 . 19 . 37 231 19 . 11 12 438 . 149 11 4 10 293 237 418 151 224 Move 14982 | 147 174 379 580 169 236 628 1218 285 687 80 710 139 787 431 447 466 1378 275 891 232 266 173 424 883 1049 523 1325 Hop . | . . . . . . . . . . . . . . . . . . . . . . . . . . . . Pick Up 144 | 6 4 2 6 5 6 9 10 1 . . . 1 3 . 8 2 19 . 8 1 . 2 3 15 24 4 5 Fast Attach 155 | 7 . 1 6 . 3 2 6 4 2 . 8 2 2 4 12 . 26 5 6 . 1 3 1 13 24 3 14 Attach 112 | . . 1 1 1 6 4 8 1 8 . 10 3 1 3 4 9 9 . 3 . 4 . 1 7 14 1 13 Detach 49 | . . . . . 2 . 4 . 2 . 8 2 . . 6 . 5 . 1 . 1 2 . 3 8 1 4 Swap 86 | . . 6 . 1 . 8 4 5 2 . . . . . . . 5 . 2 1 2 . 3 15 18 2 12 Drop 142 | . 4 6 9 4 . 10 12 7 6 . . . . . . . 6 5 8 1 . . 3 18 30 8 5 Fire 920 | 22 2 24 . 4 31 33 86 23 37 . 53 5 . 17 10 40 131 . 36 . 6 . 4 52 124 10 170 Melee 118 | . . . . . . . . . . . . . . . . . 38 23 13 . 2 . 6 17 18 . 1 Ram 3 | . . . . . . . . . . . . 1 . . . . . . . . . . . . . . 2 Kick 1 | . . . . . . . . . . . 1 . . . . . . . . . . . . . . . . Crush 4 | . . . . . . . . . . . . . . . . . . . . . . . . . . 1 3 Escape Stasis 23 | . . . . . . . 1 . . . . . . . . . 1 . . . . . . . . . 21 Rewire 160 | . . . . . . . . . . . . . . . 36 . . . . . . 1 . . 123 . . Trap . | . . . . . . . . . . . . . . . . . . . . . . . . . . . . Miscellaneous . | . . . . . . . . . . . . . . . . . . . . . . . . . . . . Route ------- -11/Scrapyard -10/Materials (discovered 2 exits: *Min x2) -10/Mines (discovered 2 exits: *Mat / *Exi) -10/Exiles -9/Mines -8/Materials (discovered 3 exits: *Fac x3) -7/Factory -6/Factory -6/Lower Caves -6/Lower Caves (discovered 2 exits: [*Fac] / *Dat) -6/Data Miner -5/Proximity Caves -5/Factory -5/Upper Caves -5/Upper Caves (discovered 2 exits: *Fac / *War) -5/Warlord -4/Proximity Caves -4/Factory -4/Waste -4/Factory -4/Upper Caves -4/Upper Caves -4/Zhirov -3/Proximity Caves -3/Research -3/Armory -2/Research -1/Access History --------- Turn | Location | Event 27 | -11/Scrapyard | Discovered new exit (range 16) 256 | -11/Scrapyard | Entered Materials 288 | -10/Materials | Discovered new exit (range 7) 307 | -10/Materials | Build established: Mutant 488 | -10/Materials | Identified exit to Mines 545 | -10/Materials | Entered Mines 545 | -10/Mines | Accompanied by 1 ally 551 | -10/Mines | Met a Derelict bent on vengeance 600 | -10/Mines | Found the Drone Emporium 603 | -10/Mines | Learned 8 Materials zone layouts 607 | -10/Mines | Found Prototype Device 608 | -10/Mines | Identified Sensor Drone Bay 982 | -10/Mines | Learned 2 Materials zone layouts 1056 | -10/Mines | Discovered new exit (range 10) 1079 | -10/Mines | Identified exit to Materials 1097 | -10/Mines | Found a hidden stash of uninstalled traps 1253 | -10/Mines | Deemed a non-threat by the Exiles lab entrance 1254 | -10/Mines | Discovered new exit (range 5) 1261 | -10/Mines | Identified exit to Exiles 1263 | -10/Mines | Entered Exiles 1263 | -10/Exiles | Accompanied by 2 allies 1304 | -10/Exiles | Met 8R-AWN 1326 | -10/Exiles | Met EX-HEX 1472 | -10/Exiles | Met EX-DEC 1502 | -10/Exiles | Learned location of Zion (-7) 1559 | -10/Exiles | Met EX-BIN 1575 | -10/Exiles | Aligned with FarCom system 1577 | -10/Exiles | Given EX-Vault access code 1644 | -10/Exiles | Opened EX-Vault 1652 | -10/Exiles | Found Prototype Device 1652 | -10/Exiles | Identified Cloak of Protection 1656 | -10/Exiles | Found Prototype Energy Cannon 1656 | -10/Exiles | Identified Gui. Plasma Cannon 1661 | -10/Exiles | Found Prototype Energy Cannon 1661 | -10/Exiles | Identified YOLO Cannon 1729 | -10/Exiles | Warned to stay clear of 0b10 Research branches 1989 | -10/Exiles | Visited The Gauntlet 2170 | -10/Exiles | Discovered new exit (range 15) 2243 | -10/Exiles | Left Exiles lab with Gui. Plasma Cannon 2243 | -10/Exiles | Entered Mines 2243 | -9/Mines | Accompanied by 1 ally 2296 | -9/Mines | Discovered new exit (range 6) 2426 | -9/Mines | Learned location of 1 exit from Lower Caves 2457 | -9/Mines | Found a damaged Exp. Sensor Array with a note attached 2460 | -9/Mines | Found Prototype Device 2479 | -9/Mines | Identified Exp. Sensor Array 2573 | -9/Mines | Entered Materials 2573 | -8/Materials | Accompanied by 1 ally 2573 | -8/Materials | Evolved 4 slots: Propulsion x2, Utility x1, Weapon x1 2574 | -8/Materials | Identified exit to Factory 2605 | -8/Materials | Garrison activated, responded to threat 2840 | -8/Materials | Lost 3 parts (1p2w) 2893 | -8/Materials | Discovered exit to Factory (range 11) 3117 | -8/Materials | Entered Factory 3117 | -7/Factory | Evolved 2 slots: Utility x2 3157 | -7/Factory | Build established: Scavenger-Skirmisher 3513 | -7/Factory | Local fabrication network quarantined 3552 | -7/Factory | Fabricated Hvy. Plasma Cannon? 4300 | -7/Factory | Discovered new exit (range 6) 4327 | -7/Factory | Entered another Factory area 4327 | -6/Factory | Evolved 2 slots: Propulsion x1, Utility x1 4627 | -6/Factory | Build established: Scavenger-Mutant 5759 | -6/Factory | Crushed by falling debris 6643 | -6/Factory | Build established: Scavenger-Skirmisher 6689 | -6/Factory | Discovered new exit (range 5) 6694 | -6/Factory | Entered Lower Caves 6695 | -6/Lower Caves | Identified exit to Lower Caves 6729 | -6/Lower Caves | Imp. Heat Sink stolen by Master Thief 6796 | -6/Lower Caves | Spotted B-75 Beast 7102 | -6/Lower Caves | Entered another Lower Caves area 7119 | -6/Lower Caves | Discovered new exit (range 10) 7298 | -6/Lower Caves | Build established: Mutant 7322 | -6/Lower Caves | Learned Factory stockpile data 7562 | -6/Lower Caves | Spotted B-75 Beast 7605 | -6/Lower Caves | Attracted the attention of an 0b10 checkpoint 7664 | -6/Lower Caves | Lost 4 parts (2u2w) 7822 | -6/Lower Caves | Lost 5 parts (1p1n2u1w) 7922 | -6/Lower Caves | Destroyed B-75 Beast 7946 | -6/Lower Caves | Lost 4 parts (2n1u1w) 7956 | -6/Lower Caves | Discovered new exit (range 9) 7961 | -6/Lower Caves | Entered Data Miner 7961 | -6/Data Miner | Discovered new exit (range 6) 7968 | -6/Data Miner | Met Data Miner 7979 | -6/Data Miner | Learned location of Section 7 (-2) 7979 | -6/Data Miner | Acquired the access code to Warlord's prototype stash 7987 | -6/Data Miner | Received God Mode back door access code from Data Miner 8001 | -6/Data Miner | Entered Proximity Caves 8004 | -5/Proximity Caves | Learned Factory machine intel 8050 | -5/Proximity Caves | Learned Factory interactive machine intel 8056 | -5/Proximity Caves | Spotted B-75 Beast 8157 | -5/Proximity Caves | Escorted by Enhanced Grunt 8173 | -5/Proximity Caves | Destroyed B-75 Beast 8230 | -5/Proximity Caves | Attracted the attention of an 0b10 checkpoint 8259 | -5/Proximity Caves | Core integrity fell below 50% 8518 | -5/Proximity Caves | Build established: Scavenger-Mutant 8648 | -5/Proximity Caves | System corruption reached 10% 8723 | -5/Proximity Caves | Core integrity fell below 20% 8760 | -5/Proximity Caves | Discovered new exit (range 12) 8766 | -5/Proximity Caves | Entered Factory 8766 | -5/Factory | Evolved 2 slots: Power x1, Propulsion x1 8768 | -5/Factory | Loaded intel: 283 machine locations 8769 | -5/Factory | Loaded intel: 48 interactive machine locations 8772 | -5/Factory | Lost 9 parts (1p3n4u1w) 8995 | -5/Factory | Build established: Mutant 9059 | -5/Factory | Discovered new exit (range 14) 9098 | -5/Factory | Entered Upper Caves 9113 | -5/Upper Caves | Learned 4 Factory zone layouts 9163 | -5/Upper Caves | Lost 3 parts (1p1n1w) 9188 | -5/Upper Caves | Spotted B-75 Beast 9313 | -5/Upper Caves | Attracted the attention of an 0b10 checkpoint 9518 | -5/Upper Caves | Core integrity fell below 50% 9548 | -5/Upper Caves | Discovered new exit (range 6) 9554 | -5/Upper Caves | Entered another Upper Caves area 9555 | -5/Upper Caves | Identified exit to Warlord 9560 | -5/Upper Caves | Discovered new exit (range 11) 10131 | -5/Upper Caves | Entered Warlord 10270 | -5/Warlord | Visited the Vortex Lab 10280 | -5/Warlord | Found Prototype Energy Cannon 10282 | -5/Warlord | Found Prototype Energy Cannon 10284 | -5/Warlord | Found Prototype Energy Gun 10286 | -5/Warlord | Warlord's base attacked by MAIN.C 10287 | -5/Warlord | Found Prototype Energy Gun 10311 | -5/Warlord | Build established: Scavenger-Mutant 10372 | -5/Warlord | Met Warlord 10636 | -5/Warlord | Warlord forces counterattacked 10637 | -5/Warlord | Spotted Striker 10649 | -5/Warlord | Spotted Executioner 10655 | -5/Warlord | Allies destroyed Striker 10689 | -5/Warlord | Lost 4 parts (3n1w) 10710 | -5/Warlord | P-80 Master assimilated allied OZ-KTX(l) 10738 | -5/Warlord | Spotted Striker 10740 | -5/Warlord | Spotted Striker 10747 | -5/Warlord | Discovered new exit (range 12) 10760 | -5/Warlord | Entered Proximity Caves 10760 | -4/Proximity Caves | Accompanied by 1 ally 10780 | -4/Proximity Caves | Learned location of Quarantine (-2) 11028 | -4/Proximity Caves | Identified Vortex Rail (x2) 11200 | -4/Proximity Caves | Core integrity fell below 20% 11397 | -4/Proximity Caves | Identified Vortex Cannon (x2) 11439 | -4/Proximity Caves | Discovered new exit (range 17) 11443 | -4/Proximity Caves | Lost 7 parts (1p6n) 11460 | -4/Proximity Caves | Entered Factory 11460 | -4/Factory | Evolved 2 slots: Utility x2 11849 | -4/Factory | Garrison activated, responded to threat 11911 | -4/Factory | Lost 5 parts (1n2u2w) 12579 | -4/Factory | System corruption reached 10% 12657 | -4/Factory | Lost 9 parts (2n4u3w) 12863 | -4/Factory | P-70 Sage assimilated allied Technician 7a 13279 | -4/Factory | Crushed by falling debris 13280 | -4/Factory | System corruption reached 30% 13310 | -4/Factory | Lost 3 parts (1p1n1u) 13520 | -4/Factory | Fabricated Micro-nuke Launcher (x1) 13710 | -4/Factory | First assault squad dispatched 13729 | -4/Factory | Incoming assault squad redirected 13903 | -4/Factory | Sucked down chute 13903 | -4/Factory | Entered Waste 13903 | -4/Waste | The area was eerily silent 14210 | -4/Waste | Discovered new exit (range 13) 14286 | -4/Waste | Entered Factory 15262 | -4/Factory | Lost 4 parts (2u2w) 15556 | -4/Factory | Discovered new exit (range 7) 15616 | -4/Factory | Entered Upper Caves 15617 | -4/Upper Caves | Encountered a Warlord checkpoint 15823 | -4/Upper Caves | Identified exit to Upper Caves 15879 | -4/Upper Caves | Spotted B-86 Titan 15886 | -4/Upper Caves | Entered another Upper Caves area 16103 | -4/Upper Caves | Attracted the attention of an 0b10 checkpoint 16187 | -4/Upper Caves | Discovered new exit (range 13) 16220 | -4/Upper Caves | Found Alien Artifact 16220 | -4/Upper Caves | Identified Dimensional Node Initializer 16220 | -4/Upper Caves | Initialized slip node 16231 | -4/Upper Caves | Entered Zhirov 16231 | -4/Zhirov | Discovered new exit (range 3) 16255 | -4/Zhirov | Met Zhirov 16280 | -4/Zhirov | Learned location of Testing (-3) 16280 | -4/Zhirov | Learned location of Command (-1) 16311 | -4/Zhirov | Zhirov requested help retrieving the SGEMP Prototype 16336 | -4/Zhirov | Found Alien Artifact 16336 | -4/Zhirov | Identified Integrated Dissipator 16336 | -4/Zhirov | Installed Integrated Dissipator, increased core heat dissipation (+20) 16356 | -4/Zhirov | Found Alien Artifact 16475 | -4/Zhirov | Entered Proximity Caves 16707 | -3/Proximity Caves | Spotted B-86 Titan 17018 | -3/Proximity Caves | Discovered new exit (range 5) 17193 | -3/Proximity Caves | Received a Behemoth hack from an annoying Tinkerer 17319 | -3/Proximity Caves | Entered Research 17319 | -3/Research | Evolved 2 slots: Propulsion x2 17320 | -3/Research | Identified exit to Armory 17395 | -3/Research | Fabricated A-02 Transporter? 17425 | -3/Research | Found Antimissile System 18197 | -3/Research | Lost 3 parts (2n1w) 18291 | -3/Research | Build established: Scavenger-Skirmisher 18529 | -3/Research | Repaired Imp. Medium Armor Plating 18612 | -3/Research | System corruption reached 10% 18649 | -3/Research | Lost 4 parts (1n2u1w) 18819 | -3/Research | Entered Armory 18985 | -3/Armory | Build established: Scavenger-Mutant 20319 | -3/Armory | First assault squad dispatched 20338 | -3/Armory | Energy Cycler disabled 20348 | -3/Armory | Incoming assault squad redirected 20840 | -3/Armory | Incoming investigation squad redirected 21072 | -3/Armory | Build established: Scavenger-Skirmisher 21115 | -3/Armory | P-80 Master assimilated allied Archangel 8b 21314 | -3/Armory | Destroyed 7 combat bots 21350 | -3/Armory | Discovered new exit (range 16) 21375 | -3/Armory | Lost 3 parts (1p1u1w) 21379 | -3/Armory | Destroyed 7 combat bots 21397 | -3/Armory | Entered Research 21397 | -2/Research | Warlord forces began assault on 0b10 21397 | -2/Research | Evolved 2 slots: Utility x2 21478 | -2/Research | Central database locked down 21507 | -2/Research | Research machine network offline 21693 | -2/Research | Build established: Scavenger-Tank 22005 | -2/Research | Build established: Scavenger-Mutant 22138 | -2/Research | Spotted Striker 22145 | -2/Research | Destroyed Striker 22187 | -2/Research | Borebot progress halted 22283 | -2/Research | Spotted Striker 22334 | -2/Research | Met up with Warlord 22370 | -2/Research | Spotted Striker 22375 | -2/Research | Destroyed Striker 22388 | -2/Research | Discovered new exit (range 18) 22415 | -2/Research | Entered Access 22415 | -1/Access | Evolved 2 slots: Propulsion x2 22842 | -1/Access | Build established: Scavenger-Tank 22951 | -1/Access | First assault squad dispatched 22967 | -1/Access | Incoming assault squad redirected 23524 | -1/Access | System corruption reached 10% 23644 | -1/Access | Spotted B-99 Colossus 24099 | -1/Access | Destroyed 8 combat bots 24185 | -1/Access | Incoming assault squad redirected 24432 | -1/Access | Incoming assault squad redirected 24439 | -1/Access | Build established: Scavenger-Skirmisher 24743 | -1/Access | High security lockdown imminent 24769 | -1/Access | Destroyed 7 combat bots 24823 | -1/Access | High security lockdown engaged 25007 | -1/Access | Identified Transdimensional Reconstructor 25007 | -1/Access | Warped through subspace 25022 | -1/Access | Destroyed 9 combat bots 25160 | -1/Access | Spotted Executioner 25189 | -1/Access | Destroyed Executioner 25198 | -1/Access | System corruption reached 30% 25215 | -1/Access | Released all parts (3) 25219 | -1/Access | Core integrity fell below 50% 25227 | -1/Access | Spotted Investigator 25229 | -1/Access | Scanned by Researcher 25242 | -1/Access | Core integrity fell below 20% 25246 | -1/Access | Lost 19 parts (3p5n6u5w) 25251 | -1/Access | Destroyed by G-73 Enforcer with Heavy Laser Last Messages --------------- 25244_ K-01 Serf stasis bubble strength at 20. 25244_ Stasis bubble strength at 110. 25244_ A-15 Conveyor stasis bubble bursts. 25244_ Held in stasis. 25244_ Investigator is analyzing... 25245_ K-01 Serf stasis bubble strength at 5. 25245_ Stasis bubble strength at 104. 25246_ K-01 Serf stasis bubble bursts. 25246_ Stasis bubble strength at 98. 25247_ K-01 Serf collects debris. 25247_ Stasis bubble strength at 92. 25247_ Held in stasis. 25247_ Investigator is analyzing... 25248_ System corrupted: Heat flow error (+257). 25248_ Stasis bubble strength at 86. 25249_ Stasis bubble strength at 80. 25250_ Stasis bubble strength at 74. 25250_ Held in stasis. 25250_ Investigator is analyzing... [Achievement: 30k Club] Map ----- +----------------------------------------------------+ | %= # % # ######## ### #??????????? | | % ??????????# #?# #??????????? | | * ??????# #?# #??????????? | | # ??????# #?# #??????????? | | # ???????# #?# !!! #??????????? | | # #?? " ???????# #?# !! #??????????? | | ?# ###????"""????????# #?# !! #??????????? | | ?# #?????????????????# ### #??????????? | | ?# #?????????????????# ##" #??????????? | | ?# #??????????? ????# ### #??????????? | | ?# #?????????? ????# o #?# #??????????? | | ?# #?????? ?? ???# #?# #??????????? | | ?# #?????? ? #??# #?##"#################? | | ?# ###### # ###### #??## #? | | ?# #???# #? | | ?# % A " #???# " " #? | | ?# ##### % "" R #???# """ """ #? | | ?# #??## # % k #???# """ """ #? | | ?# #??# "" #???# " " #? | | ?# #??#"" #???# #? | | ?# #??#"F #???# #? | | ?# #??#"" % #???# #? | | ## ##?#""" A #???#########+########? | | # #?#""" A ########### #??????? | | # "" #?#### %gcg m #??????? | | # "T #????# k g@ g #??????? | | # #????# #######g############# #??????? | | ## ##????# ## ! gb #????????## ##??????? | | ?# #?????######### pp #?????????# #???????? | | ?# #?????????????# gpg#?????????# #???????? | | ?# #????????????## iepg#?????????# #???????? | | ?# #????????????## gb #?????????# #???????? | | ?# #????????????## = #?????????# #???????? | | ?# #????????????## %*= #?????????# #???????? | | ?# #????????????# % #?????????# #???????? | | ?# #????????????## #?????????# #???????? | | ?# #?????????????# #?????????# #???????? | | ?# #?????????????# #?????????# #???????? | | ## #?????????????# #?????????? #???????? | | #?????????????# % ########### #???????? | | #?????????????# "" " g# # #???????? | | #####?????????????# ""T"" " # #?????? | | ??????????????????# "" %#! """" |# #???! ?? | | ??????????????????########### " R"" #% # ????? | | ???????????????????##??????## */ /% +???????? | | ??????????????????# #?####### *=*[%!#% #???????? | | ?????????????????# #??# " /%=%*[ #??????????? | | ????????????????# #???##### #!%*=!=%= #??????????? | | #####??????????# #???????#""""#########??????????? | | "#?????????# #?????# " ??????????????????? | +----------------------------------------------------+ Best States ------------- Heat Dissipation 186 Energy Generation 45 Energy Capacity 600 Matter Stores 450 Matter Capacity 450 Sight Range 22 Robot Scan Range 30 Terrain Scan Range 20 Terrain Scan Density 10 Cloak Strength 4 Armor Coverage 2400 Resistance: TH 30 Resistance: EM 20 Power Shielding 90 Phase Shifting 10 Evasion (%) 53 Targeting Accuracy 8 Target Analysis 8 Recoil Reduction 16 Matter Filtering 50 Energy Filtering 30 Particle Charging 25 Item Schematics ----------------- Combat Drone Bay | -6/Data Miner | Free Lgt. Regenerative Plating | -6/Data Miner | Free Cmb. Gravmag System | -6/Data Miner | Free Exp. Transmission Jammer | -6/Data Miner | Free Cloaking Device | -6/Data Miner | Free Kinetic Spear | -6/Data Miner | Free Assault Drone Bay | -4/Zhirov | Free Exp. Heat Sink | -4/Zhirov | Free Exp. Optical Array | -4/Zhirov | Free Imp. Arc Thrower | -4/Zhirov | Free Adv. Heavy Siege Treads | -1/Access | Hacked Robot Schematics ------------------ S-27 Virus | -6/Data Miner | Free G-50 Soldier | -6/Data Miner | Free G-67 Veteran | -6/Data Miner | Free L-41 Fighter | -6/Data Miner | Free P-70 Sage | -6/Data Miner | Free I-36 Angel | -6/Data Miner | Free Fabricated ------------ Hvy. Plasma Cannon | x2 | -7/Factory | Preloaded Micro-nuke Launcher | x1 | -4/Factory | Preloaded A-02 Transporter | x1 | -3/Research | Preloaded Alien Tech Used ----------------- Dimensional Node Initializer Integrated Dissipator Transdimensional Reconstructor Achievements -------------- 30k Club Adventurer All-out Warlord Can't Touch This Charge!!! Close Call Denied? Explorer Origins Turtlemind Z1$+NX3F=JRE3_ZNQR Challenges ------------ None Game ------ Seed FactoryAssembledDetonator Manual? 0 Play Time 04:31:10 Cumulative 63.1 hours Start 2021.05.10 @ 14:57:44 End 2021.05.30 @ 18:01:01 Sessions 27 Manual Loads 0 Difficulty Rogue Special Mode None Game No. 41 Rogue 41 Adventurer 0 Explorer 0 Win Type - Total 0 Types 0/0/0/0/0/0/0/0/0 Lore% 39 Gallery% 49 Achievement% 35 Wizard Run 0 Options --------- ASCII 0 Keyboard 1 Movement Numpad Keybinds 0 Fullscreen 1 Font 18/SmallcapsGlow Map View 76x50 Tactical HUD 1 Map Filters NONE Filters NONE Steam 1 RUN: 16f9b182-0324-4bba-8df8-74f0135c57de